fUST/lending_fUST_20250302
["ID","MTS","AMOUNT","RATE_DAILY","PERIOD"]
[355112249,1740901850690,-160.0,0.00023471,2]
[355112250,1740901850699,-151.0,0.00023538,7]
[355112251,1740901850709,-500.0,0.00023538,2]
[355112252,1740901850719,-151.0,0.00023538,7]
[355112253,1740901850728,-259.62,0.00023538,2]
[355112254,1740901850738,-151.0,0.00023538,7]
[355112255,1740901850748,-500.0,0.00023538,2]
[355112256,1740901850757,-500.0,0.00023538,2]
[355112257,1740901850767,-500.0,0.00023538,2]
[355112258,1740901850776,-500.0,0.00023538,2]
[355112259,1740901850786,-500.0,0.00023538,2]
[355112260,1740901850797,-500.0,0.00023538,2]
[355112261,1740901850806,-546.83,0.00023538,2]
[355112262,1740901850816,-151.0,0.00023538,7]
[355112263,1740901850825,-500.0,0.00023538,2]
[355112264,1740901850835,-500.0,0.00023538,2]
[355112265,1740901850845,-2388.49,0.00023538,2]
[355112266,1740901850854,-500.0,0.00023538,2]
[355112267,1740901850864,-500.0,0.00023538,2]
[355112268,1740901850874,-500.0,0.00023538,2]
[355112269,1740901850884,-500.0,0.00023538,2]
[355112270,1740901850893,-500.0,0.00023538,2]
[355112271,1740901850903,-500.0,0.00023538,2]
[355112272,1740901850913,-500.0,0.00023538,2]
[355112273,1740901850923,-500.0,0.00023538,2]
[355112274,1740901850934,-500.0,0.00023538,2]
[355112275,1740901850943,-1164.48,0.00023538,2]
[355112276,1740901850953,-500.0,0.00023538,2]
[355112277,1740901850962,-500.0,0.00023538,2]
[355112278,1740901850973,-500.0,0.00023538,2]
[355112279,1740901850983,-151.0,0.00023538,7]
[355112280,1740901850992,-198.730812,0.00023538,7]
[355112281,1740901851003,-151.0,0.00023538,7]
[355112282,1740901851012,-500.0,0.00023538,2]
[355112283,1740901851022,-500.0,0.00023538,2]
[355112284,1740901851031,-500.0,0.00023538,2]
[355112285,1740901851041,-160.0,0.00023538,7]
[355112286,1740901851050,-19629.85965445,0.00023538,7]
[355112287,1740901851059,-515.1559343,0.00023558,2]
[355112288,1740901851069,-500.0,0.00023642,2]
[355112289,1740901851079,-2520.96,0.00023642,2]
[355112290,1740901851088,-1237.98,0.00023642,2]
[355112291,1740901851099,-500.0,0.00023642,2]
[355112292,1740901851108,-500.0,0.00023642,2]
[355112293,1740901851118,-528.12,0.00023642,2]
[355112294,1740901851127,-1552.03,0.00023642,2]
[355112295,1740901851137,-500.0,0.00023642,2]
[355112296,1740901851146,-2748.87,0.00023642,2]
[355112297,1740901851155,-4030.36,0.00023642,2]
[355112298,1740901851165,-952.16,0.00023642,2]
[355112299,1740901851175,-2216.69,0.00023642,2]
[355112300,1740901851184,-165.4,0.00023642,2]
[355112301,1740901851194,-1805.47,0.00023642,2]
[355112302,1740901851204,-605.44,0.00023642,2]
[355112303,1740901851215,-500.0,0.00023643,2]
[355112304,1740901851225,-500.0,0.00023643,2]
[355112305,1740901851234,-500.0,0.00023643,2]
[355112306,1740901851244,-536.85,0.00023643,2]
[355112307,1740901851254,-500.0,0.00023643,2]
[355112308,1740901851264,-500.0,0.00023643,2]
[355112309,1740901851273,-540.37,0.00023643,2]
[355112310,1740901851285,-500.0,0.00023643,2]
[355112311,1740901851294,-334.44,0.00023643,2]
[355112312,1740901851304,-500.0,0.00023643,2]
[355112313,1740901851313,-500.0,0.00023643,2]
[355112314,1740901851323,-540.38,0.00023643,2]
[355112315,1740901851332,-500.0,0.00023643,2]
[355112316,1740901851342,-500.0,0.00023643,2]
[355112317,1740901851351,-500.0,0.00023643,2]
[355112318,1740901851361,-868.82,0.00023643,2]
[355112319,1740901851372,-500.0,0.00023643,2]
[355112320,1740901851381,-1309.87,0.00023643,2]
[355112321,1740901851391,-913.35,0.00023643,2]
[355112322,1740901851400,-1977.48,0.00023643,2]
[355112323,1740901851409,-151.0,0.00023643,7]
[355112324,1740901851419,-151.0,0.00023643,7]
[355112325,1740901851429,-4082.46,0.00023643,2]
[355112326,1740901851439,-151.0,0.00023643,7]
[355112327,1740901851448,-151.0,0.00023643,7]
[355112328,1740901851459,-151.0,0.00023643,7]
[355112329,1740901851469,-1997.71,0.00023643,2]
[355112330,1740901851478,-500.0,0.00023643,2]
[355112331,1740901851487,-500.0,0.00023643,2]
[355112332,1740901851497,-151.0,0.00023643,7]
[355112333,1740901851507,-500.0,0.00023643,2]
[355112334,1740901851516,-538.17,0.00023643,2]
[355112335,1740901851526,-863.06,0.00023643,2]
[355112336,1740901851535,-151.0,0.00023643,7]
[355112337,1740901851545,-500.0,0.00023643,2]
[355112338,1740901851555,-731.97,0.00023643,2]
[355112339,1740901851564,-3517.02,0.00023643,2]
[355112340,1740901851575,-668.76,0.00023643,2]
[355112341,1740901851584,-151.0,0.00023643,7]
[355112342,1740901851594,-151.0,0.00023643,7]
[355112343,1740901851604,-500.0,0.00023643,2]
[355112344,1740901851614,-500.0,0.00023643,2]
[355112345,1740901851624,-742.42,0.00023643,2]
[355112346,1740901851633,-252.29,0.00023643,2]
[355112347,1740901851643,-2599.16,0.00023643,2]
[355112348,1740901851652,-500.0,0.00023643,2]
[355112349,1740901851662,-500.0,0.00023643,2]
[355112350,1740901851671,-717.61,0.00023643,2]
[355112351,1740901851680,-2359.06,0.00023643,2]
[355112352,1740901851690,-688.42,0.00023643,2]
[355112353,1740901851699,-500.0,0.00023643,2]
[355112354,1740901851709,-800.41,0.00023643,2]
[355112355,1740901851718,-151.0,0.00023712,7]
[355112356,1740901851728,-151.0,0.00023712,7]
[355112357,1740901851737,-151.0,0.00023712,7]
[355112358,1740901851747,-151.0,0.00023712,7]
[355112359,1740901851756,-346.612221,0.00023712,7]
[355112360,1740901851765,-151.0,0.00023712,7]
[355112361,1740901851775,-346.612221,0.00023712,7]
[355112362,1740901851785,-151.0,0.00023712,7]
[355112363,1740901851794,-151.0,0.00023712,7]
[355112364,1740901851804,-1000.000001,0.000238,2]
[355112365,1740901851813,-500.0,0.000238,2]
[355112366,1740901851823,-500.0,0.000238,2]
[355112367,1740901851833,-500.0,0.000238,2]
[355112368,1740901851843,-500.0,0.000238,2]
[355112369,1740901851852,-500.0,0.000238,2]
[355112370,1740901851862,-500.0,0.000238,2]
[355112371,1740901851871,-500.0,0.000238,2]
[355112372,1740901851881,-500.0,0.000238,2]
[355112373,1740901851890,-500.0,0.000238,2]
[355112374,1740901851899,-500.0,0.000238,2]
[355112375,1740901851910,-500.0,0.000238,2]
[355112376,1740901851920,-551.036017,0.000238,2]
[355112377,1740901851929,-500.0,0.00023812,2]
[355112378,1740901851939,-452.46572972,0.00023812,2]
[355112379,1740901851948,-536.53,0.00023812,2]
[355112380,1740901851959,-500.0,0.00023812,2]
[355112381,1740901851968,-500.0,0.00023812,2]
[355112382,1740901851977,-445.2529613,0.00023812,2]
[355112383,1740901851987,-500.0,0.00023812,2]
[355112384,1740901851996,-500.0,0.00023812,2]
[355112385,1740901852006,-2388.49,0.00023812,2]
[355112386,1740901852016,-577.0,0.00023812,2]
[355112387,1740901852027,-500.0,0.00023812,2]
[355112388,1740901852039,-500.0,0.00023812,2]
[355112389,1740901852050,-500.0,0.00023812,2]
[355112390,1740901852059,-500.0,0.00023812,2]
[355112391,1740901852069,-500.0,0.00023812,2]
[355112392,1740901852079,-500.0,0.00023812,2]
[355112393,1740901852088,-1164.48,0.00023812,2]
[355112394,1740901852098,-500.0,0.00023812,2]
[355112395,1740901852107,-197.27,0.00023812,2]
[355112396,1740901852116,-372.99,0.00023812,2]
[355112397,1740901852126,-500.0,0.00023812,2]
[355112398,1740901852135,-8772.545,0.00023813,2]
[355112399,1740901852144,-151.0,0.00023864,7]
[355112400,1740901852154,-151.0,0.00023864,7]
[355112401,1740901852163,-13454.93161279,0.00023864,2]
[355112402,1740901852178,-2915.00330111,0.00023864,2]
[355112403,1740901973449,-332802.29130663,0.00021,2]
[355112405,1740902146257,2000.0,0.00022,14]
[355112416,1740902181555,1000.0,0.00021,30]
[355112418,1740902234314,1020.93694316,0.00021,28]
[355112439,1740902332457,-500.0,0.00024,30]
[355112440,1740902332485,-500.0,0.00024,30]
[355112441,1740902332511,-500.0,0.00024,30]
[355112442,1740902332537,-500.0,0.00024,30]
[355112443,1740902332563,-500.0,0.00024,30]
[355112444,1740902332588,-500.0,0.00024,30]
[355112445,1740902332616,-500.0,0.00024,30]
[355112446,1740902332643,-500.0,0.00024,30]
[355112447,1740902332670,-500.0,0.00024,30]
[355112448,1740902332697,-500.0,0.00024,30]
[355112449,1740902332732,-200.0,0.0002464,14]
[355112450,1740902332757,-180.0,0.0002465,10]
[355112451,1740902332795,-287.0,0.00025,120]
[355112452,1740902332822,-1000.0,0.00025,14]
[355112453,1740902332847,-1000.0,0.00025,14]
[355112454,1740902332887,1000.0,0.00025,14]
[355112455,1740902332978,1000.0,0.00025,14]
[355112456,1740902333278,1000.0,0.00025,14]
[355112457,1740902333595,1000.0,0.00025,14]
[355112458,1740902333983,1000.0,0.00025,14]
[355112459,1740902334308,1000.0,0.00025,14]
[355112460,1740902334618,1000.0,0.00025,14]
[355112461,1740902334945,1000.0,0.00025,14]
[355112462,1740902335247,1000.0,0.00025,14]
[355112463,1740902335557,1000.0,0.00025,14]
[355112464,1740902335889,1000.0,0.00025,14]
[355112465,1740902336199,1000.0,0.00025,14]
[355112466,1740902336517,1000.0,0.00025,14]
[355112467,1740902337399,1000.0,0.00025,14]
[355112468,1740902337702,1000.0,0.00025,14]
[355112469,1740902337997,1000.0,0.00025,14]
[355112470,1740902338297,1000.0,0.00025,14]
[355112471,1740902338608,1000.0,0.00025,14]
[355112472,1740902338932,1000.0,0.00025,14]
[355112473,1740902339922,1000.0,0.00025,14]
[355112474,1740902340307,1000.0,0.00025,14]
[355112475,1740902340635,1000.0,0.00025,14]
[355112476,1740902341119,1000.0,0.00025,14]
[355112477,1740902341631,1000.0,0.00025,14]
[355112478,1740902341977,1000.0,0.00025,14]
[355112479,1740902342294,1000.0,0.00025,14]
[355112480,1740902342722,1000.0,0.00025,14]
[355112481,1740902343036,1000.0,0.00025,14]
[355112482,1740902343366,1000.0,0.00025,14]
[355112483,1740902343929,1000.0,0.00025,14]
[355112484,1740902344380,1000.0,0.00025,14]
[355112485,1740902344699,1000.0,0.00025,14]
[355112486,1740902345137,1000.0,0.00025,14]
[355112487,1740902346018,1000.0,0.00025,14]
[355112488,1740902346393,1000.0,0.00025,14]
[355112489,1740902346737,1000.0,0.00025,14]
[355112490,1740902347247,1000.0,0.00025,14]
[355112491,1740902347789,1000.0,0.00025,14]
[355112492,1740902348098,1000.0,0.00025,14]
[355112493,1740902348392,1000.0,0.00025,14]
[355112494,1740902348717,1000.0,0.00025,14]
[355112495,1740902348888,1000.0,0.00021,14]
[355112496,1740902349007,1000.0,0.00025,14]
[355112497,1740902349339,1000.0,0.00025,14]
[355112498,1740902349675,1000.0,0.00025,14]
[355112499,1740902350011,1000.0,0.00025,14]
[355112500,1740902350922,1000.0,0.00025,14]
[355112501,1740902351275,1000.0,0.00025,14]
[355112502,1740902351819,1000.0,0.00025,14]
[355112503,1740902352114,1000.0,0.00025,14]
[355112504,1740902352422,1000.0,0.00025,14]
[355112505,1740902352725,1000.0,0.00025,14]
[355112506,1740902353104,1000.0,0.00025,14]
[355112507,1740902353631,1000.0,0.00025,14]
[355112508,1740902354078,1000.0,0.00025,14]
[355112509,1740902354502,1000.0,0.00025,14]
[355112510,1740902354811,1000.0,0.00025,14]
[355112511,1740902355206,1000.0,0.00025,14]
[355112512,1740902355552,1000.0,0.00025,14]
[355112513,1740902355908,1000.0,0.00025,14]
[355112514,1740902356527,1000.0,0.00025,14]
[355112515,1740902356566,1000.0,0.00025,14]
[355112516,1740902356950,1000.0,0.00025,14]
[355112517,1740902357320,1000.0,0.00025,14]
[355112518,1740902357638,1000.0,0.00025,14]
[355112519,1740902357942,1000.0,0.00025,14]
[355112520,1740902358307,1000.0,0.00025,14]
[355112521,1740902358664,1000.0,0.00025,14]
[355112522,1740902358978,1000.0,0.00025,14]
[355112523,1740902359311,1000.0,0.00025,14]
[355112524,1740902360366,1000.0,0.00025,14]
[355112525,1740902360795,1000.0,0.00025,14]
[355112526,1740902361150,1000.0,0.00025,14]
[355112527,1740902361488,997.603027,0.00025,14]
[355112528,1740902364507,1000.0,0.00021,20]
[355112529,1740902371635,1000.0,0.00021,21]
[355112530,1740902396814,2000.0,0.00021,18]
[355112531,1740902423429,2000.0,0.00021,10]
[355112533,1740902456283,300.93,0.00025,12]
[355112535,1740902619160,-489.986171,0.00020137,2]
[355112536,1740902619187,-166.0,0.00020473,2]
[355112537,1740902619210,-300.0,0.00020766,2]
[355112538,1740902619231,-9044.013829,0.00020767,2]
[355112539,1740902748033,-300.0,0.00020766,2]
[355112540,1740902748057,-15855.986171,0.00020767,2]
[355112541,1740902748078,-500.0,0.00020767,7]
[355112542,1740902748102,-191.648005,0.00020867,2]
[355112543,1740902748123,-2466.2609964,0.00020916,2]
[355112544,1740902748144,-517.703646,0.00020941,2]
[355112545,1740902748166,-1299.31876172,0.00021438,2]
[355112546,1740902748187,-178.61225553,0.00021771,2]
[355112547,1740902748208,-248.57077248,0.000218,2]
[355112548,1740902748228,-248.57077248,0.000218,2]
[355112549,1740902748249,-248.57077248,0.000218,2]
[355112550,1740902748272,-153.37278609,0.00021894,2]
[355112551,1740902748295,-500.0,0.00021894,2]
[355112552,1740902748319,-500.0,0.00021894,2]
[355112553,1740902748342,-500.0,0.00021894,2]
[355112554,1740902748365,-206.13605084,0.00021894,2]
[355112555,1740902748390,-500.0,0.00021894,2]
[355112556,1740902748415,-500.0,0.00021894,2]
[355112557,1740902748439,-459.12993236,0.00021894,2]
[355112558,1740902748464,-500.0,0.00021894,2]
[355112559,1740902748489,-500.0,0.00021894,2]
[355112560,1740902748514,-500.0,0.00021894,2]
[355112561,1740902748544,-500.0,0.00021894,2]
[355112562,1740902748574,-500.0,0.00021894,2]
[355112563,1740902748599,-500.0,0.00021894,2]
[355112564,1740902748626,-500.0,0.00021894,2]
[355112565,1740902748651,-500.0,0.00021894,2]
[355112566,1740902748676,-500.0,0.00021894,2]
[355112567,1740902748699,-500.0,0.00021894,2]
[355112568,1740902748722,-500.0,0.00021894,2]
[355112569,1740902748745,-500.0,0.00021894,2]
[355112570,1740902748770,-500.0,0.00021894,2]
[355112571,1740902748794,-500.0,0.00021894,2]
[355112572,1740902748818,-500.0,0.00021894,2]
[355112573,1740902748842,-500.0,0.00021894,2]
[355112574,1740902748866,-500.0,0.00021894,2]
[355112575,1740902748889,-500.0,0.00021894,2]
[355112576,1740902748913,-500.0,0.00021894,2]
[355112577,1740902748936,-500.0,0.00021894,2]
[355112578,1740902748961,-500.0,0.00021894,2]
[355112579,1740902748985,-500.0,0.00021894,2]
[355112580,1740902749009,-500.0,0.00021894,2]
[355112581,1740902749032,-500.0,0.00021894,2]
[355112582,1740902749056,-459.54899647,0.00021894,2]
[355112583,1740902749080,-500.0,0.00021894,2]
[355112584,1740902749103,-500.0,0.00021894,2]
[355112585,1740902749128,-500.0,0.00021894,2]
[355112586,1740902749152,-500.0,0.00021894,2]
[355112587,1740902749175,-469.28812139,0.00021898,2]
[355112588,1740902749208,-360.53505739,0.00021898,2]
[355112589,1740902749237,-23121.74690237,0.00021899,2]
[355112590,1740902825142,-1164.35868081,0.0002181,2]
[355112591,1740902825176,-252.37454018,0.00021898,2]
[355112592,1740902825209,-328.50168497,0.00021898,2]
[355112593,1740902825246,-500.0,0.00021898,2]
[355112594,1740902825279,-191.86789289,0.00021898,2]
[355112595,1740902825310,-500.0,0.00021898,2]
[355112596,1740902825342,-500.0,0.00021898,2]
[355112597,1740902825370,-122820.17917515,0.00021899,2]
[355112598,1740902837132,-210.06222508,0.00021899,2]
[355112599,1740902842088,-1050.26434246,0.00021899,2]
[355112600,1740902842117,-1519.35136612,0.00021899,2]
[355112601,1740902842146,-429.76359698,0.00021899,2]
[355112602,1740902848143,-21466.966185,0.00021899,2]
[355112603,1740902873049,742.07,0.00021,30]
[355112604,1740902899647,884.02420823,0.00025,10]
[355112605,1740902901474,-1039.34702162,0.00020667,2]
[355112606,1740902954113,155.378756,0.0002496,10]
[355112607,1740902964123,191.52171981,0.0002181,2]
[355112647,1740903031944,-474.23756547,0.0002181,2]
[355112649,1740903032110,-279.83021472,0.0002181,2]
[355112650,1740903032168,-73.22434577,0.0002181,2]
[355112651,1740903032179,-500.0,0.00021898,2]
[355112652,1740903032189,-500.0,0.00021898,2]
[355112653,1740903032199,-29548.1517717,0.00021899,2]
[355112665,1740903038661,-297.97772681,0.00021899,2]
[355112679,1740903040271,-14028.586886,0.00021899,2]
[355112680,1740903040297,-7355.76208404,0.00021899,2]
[355112684,1740903043666,-151.18773829,0.00021899,2]
[355112685,1740903043676,-191.648005,0.0002191,2]
[355112686,1740903043686,-176.66217812,0.00021916,2]
[355112687,1740903043696,-229.95117948,0.00021916,2]
[355112689,1740903043706,-500.0,0.00021917,2]
[355112691,1740903043716,-500.0,0.00021917,2]
[355112693,1740903043727,-338.29486347,0.00021917,2]
[355112694,1740903043737,-500.0,0.00021917,2]
[355112695,1740903043746,-500.0,0.00021917,2]
[355112696,1740903043756,-500.0,0.00021917,2]
[355112697,1740903043766,-500.0,0.00021917,2]
[355112698,1740903043775,-404.01813003,0.00021917,2]
[355112699,1740903043785,-200.0,0.00021917,2]
[355112700,1740903043794,-500.0,0.00021917,2]
[355112701,1740903043804,-500.0,0.00021917,2]
[355112702,1740903043814,-500.0,0.00021917,2]
[355112703,1740903043823,-500.0,0.00021917,2]
[355112704,1740903043833,-500.0,0.00021917,2]
[355112705,1740903043842,-500.0,0.00021917,2]
[355112706,1740903043852,-500.0,0.00021917,2]
[355112707,1740903043861,-500.0,0.00021917,2]
[355112708,1740903043872,-500.0,0.00021917,2]
[355112709,1740903043882,-500.0,0.00021917,2]
[355112710,1740903043892,-634.95,0.00021917,2]
[355112711,1740903043902,-500.0,0.00021917,2]
[355112712,1740903043912,-500.0,0.00021917,2]
[355112713,1740903043921,-500.0,0.00021917,2]
[355112714,1740903043931,-500.0,0.00021917,2]
[355112715,1740903043941,-500.0,0.00021917,2]
[355112716,1740903043950,-500.0,0.00021917,2]
[355112717,1740903043959,-500.0,0.00021917,2]
[355112718,1740903043970,-500.0,0.00021917,2]
[355112719,1740903043980,-500.0,0.00021917,2]
[355112720,1740903043990,-500.0,0.00021917,2]
[355112721,1740903043999,-500.0,0.00021917,2]
[355112722,1740903044009,-500.0,0.00021917,2]
[355112723,1740903044018,-500.0,0.00021917,2]
[355112724,1740903044028,-291.55,0.00021917,2]
[355112725,1740903044037,-500.0,0.00021917,2]
[355112726,1740903044047,-500.0,0.00021917,2]
[355112727,1740903044057,-500.0,0.00021917,2]
[355112728,1740903044067,-500.0,0.00021917,2]
[355112729,1740903044077,-500.0,0.00021917,2]
[355112730,1740903044087,-500.0,0.00021917,2]
[355112731,1740903044096,-500.0,0.00021917,2]
[355112732,1740903044106,-500.0,0.00021917,2]
[355112733,1740903044115,-500.0,0.00021917,2]
[355112734,1740903044125,-500.0,0.00021917,2]
[355112735,1740903044134,-500.0,0.00021917,2]
[355112736,1740903044144,-500.0,0.00021917,2]
[355112737,1740903044153,-485.95,0.00021917,2]
[355112738,1740903044163,-500.0,0.00021917,2]
[355112739,1740903044173,-500.0,0.00021917,2]
[355112740,1740903044182,-250.0,0.00021917,2]
[355112741,1740903044192,-187.77379486,0.00021917,2]
[355112742,1740903044202,-500.0,0.00021917,2]
[355112743,1740903044212,-500.0,0.00021917,2]
[355112744,1740903044221,-500.0,0.00021917,2]
[355112745,1740903044232,-500.0,0.00021917,2]
[355112746,1740903044242,-184.00432415,0.00021917,2]
[355112747,1740903044251,-500.0,0.00021917,2]
[355112748,1740903044261,-500.0,0.00021917,2]
[355112749,1740903044270,-500.0,0.00021917,2]
[355112750,1740903044280,-354.65,0.00021917,2]
[355112751,1740903044290,-500.0,0.00021917,2]
[355112752,1740903044302,-500.0,0.00021917,2]
[355112753,1740903044311,-500.0,0.00021917,2]
[355112754,1740903044321,-500.0,0.00021917,2]
[355112755,1740903044331,-500.0,0.00021917,2]
[355112756,1740903044340,-500.0,0.00021917,2]
[355112757,1740903044351,-500.0,0.00021917,2]
[355112758,1740903044361,-500.0,0.00021917,2]
[355112759,1740903044372,-500.0,0.00021917,2]
[355112760,1740903044382,-500.0,0.00021917,2]
[355112761,1740903044393,-500.0,0.00021917,2]
[355112762,1740903044403,-500.0,0.00021917,2]
[355112763,1740903044413,-500.0,0.00021917,2]
[355112764,1740903044422,-500.0,0.00021917,2]
[355112765,1740903044433,-500.0,0.00021917,2]
[355112766,1740903044443,-500.0,0.00021917,2]
[355112767,1740903044452,-500.0,0.00021917,2]
[355112768,1740903044462,-255.37135691,0.00021917,2]
[355112769,1740903044472,-500.0,0.00021917,2]
[355112770,1740903044481,-468.5,0.00021917,2]
[355112771,1740903044491,-500.0,0.00021917,2]
[355112772,1740903044501,-500.0,0.00021917,2]
[355112773,1740903044511,-167.5383512,0.00021917,2]
[355112774,1740903044521,-211.37,0.00021917,2]
[355112775,1740903044530,-500.0,0.00021917,2]
[355112776,1740903044540,-500.0,0.00021917,2]
[355112777,1740903044550,-500.0,0.00021917,2]
[355112778,1740903044559,-500.0,0.00021917,2]
[355112779,1740903044569,-500.0,0.00021917,2]
[355112780,1740903044578,-685.01,0.00021917,2]
[355112781,1740903044588,-500.0,0.00021917,2]
[355112782,1740903044598,-500.0,0.00021917,2]
[355112783,1740903044607,-500.0,0.00021917,2]
[355112784,1740903044617,-500.0,0.00021917,2]
[355112785,1740903044627,-500.0,0.00021917,2]
[355112786,1740903044636,-500.0,0.00021917,2]
[355112787,1740903044649,-982.4,0.00021917,2]
[355112788,1740903044658,-500.0,0.00021917,2]
[355112789,1740903044668,-1483.11,0.00021917,2]
[355112790,1740903044678,-500.0,0.00021917,2]
[355112791,1740903044689,-395.05,0.00021917,2]
[355112792,1740903044699,-500.0,0.00021917,2]
[355112793,1740903044708,-500.0,0.00021917,2]
[355112794,1740903044717,-500.0,0.00021917,2]
[355112796,1740903044730,-3061.85,0.00021917,2]
[355112797,1740903044739,-500.0,0.00021917,2]
[355112798,1740903044749,-500.0,0.00021917,2]
[355112799,1740903044758,-500.0,0.00021917,2]
[355112800,1740903044768,-500.0,0.00021917,2]
[355112801,1740903044777,-500.0,0.00021917,2]
[355112802,1740903044787,-500.0,0.00021917,2]
[355112803,1740903044796,-500.0,0.00021917,2]
[355112804,1740903044806,-500.0,0.00021917,2]
[355112805,1740903044816,-1878.01,0.00021917,2]
[355112806,1740903044825,-500.0,0.00021917,2]
[355112807,1740903044835,-0.70673043,0.00021917,2]
[355112916,1740903047044,-281.9680736,0.00021917,2]
[355112918,1740903047054,-500.0,0.00021917,2]
[355112920,1740903047063,-295.22775612,0.00021917,2]
[355112922,1740903047073,-500.0,0.00021917,2]
[355112924,1740903047082,-500.0,0.00021917,2]
[355112926,1740903047092,-500.0,0.00021917,2]
[355112928,1740903047102,-647.3,0.00021917,2]
[355112929,1740903047112,-1890.72,0.00021917,2]
[355112931,1740903047121,-548.98,0.00021917,2]
[355112933,1740903047132,-191.14296927,0.00021917,2]
[355112935,1740903047141,-500.0,0.00021917,2]
[355112937,1740903047152,-928.48,0.00021917,2]
[355112939,1740903047161,-500.0,0.00021917,2]
[355112941,1740903047171,-556.82,0.00021917,2]
[355112943,1740903047180,-564.14,0.00021917,2]
[355112945,1740903047189,-500.0,0.00021917,2]
[355112947,1740903047199,-500.0,0.00021917,2]
[355112949,1740903047210,-500.0,0.00021917,2]
[355112951,1740903047220,-500.0,0.00021917,2]
[355112953,1740903047229,-310.68,0.00021917,2]
[355112955,1740903047239,-500.0,0.00021917,2]
[355112957,1740903047248,-500.0,0.00021917,2]
[355112959,1740903047257,-500.0,0.00021917,2]
[355112961,1740903047267,-500.0,0.00021917,2]
[355112963,1740903047276,-500.0,0.00021917,2]
[355112965,1740903047286,-2637.76,0.00021917,2]
[355112967,1740903047295,-500.0,0.00021917,2]
[355112969,1740903047305,-500.0,0.00021917,2]
[355112971,1740903047315,-1949.37,0.00021917,2]
[355112973,1740903047325,-500.0,0.00021917,2]
[355112975,1740903047335,-500.0,0.00021917,2]
[355112977,1740903047345,-500.0,0.00021917,2]
[355112979,1740903047355,-500.0,0.00021917,2]
[355112981,1740903047365,-500.0,0.00021917,2]
[355112983,1740903047375,-500.0,0.00021917,2]
[355112986,1740903047384,-500.0,0.00021917,2]
[355112988,1740903047394,-553.7,0.00021917,2]
[355112990,1740903047404,-1291.55,0.00021917,2]
[355112992,1740903047415,-500.0,0.00021917,2]
[355112993,1740903047425,-500.0,0.00021917,2]
[355112996,1740903047434,-500.0,0.00021917,2]
[355112998,1740903047444,-500.0,0.00021917,2]
[355113000,1740903047455,-1164.03,0.00021917,2]
[355113001,1740903047464,-500.0,0.00021917,2]
[355113003,1740903047473,-2307.55,0.00021917,2]
[355113005,1740903047483,-516.32,0.00021917,2]